Cogmind - Beta 13 @@@ ROGUE MODE // 2024.04.16 @ 09:31:28 Player: BagelsSniperWolf Result: Destroyed by G-47 Trooper with Particle Gun Performance ------------- Evolutions (3) 1500 Regions Visited (5) 1000 Robots Destroyed (108) 540 Value Destroyed (2986) 2986 Prototype IDs (6) 120 Alien Tech Used (0) 0 Bonus (110) 110 TOTAL SCORE: 6256 Bonus ------- High Alert Combat Kills 381 Friendly Fire -271 Cogmind --------- Core Integrity 0/700 Matter 300/300 Energy 100/100 System Corruption 2% Temperature Cool (9) Movement Core (700) Ox13 Location -7/Factory Parts ------- > --- POWER (3) -------- (None) > --- PROPULSION (2) --- (None) > --- UTILITY (5) ------ High-capacity Storage Unit Visual Processing Unit > --- WEAPON (3) ------- (None) > --- INVENTORY (20) --- Seismic Detector Shield Generator Peak State ------------ > --- POWER ------------ Light Deuterium Engine Light Nuclear Core Light Nuclear Core > --- PROPULSION ------- Compact Wheel Armored Wheel > --- UTILITY ---------- Improved Heat Sink High-capacity Storage Unit Visual Processing Unit Advanced Terrain Scan Processor Improved Shield Generator > --- WEAPON ----------- Particle Gun Heavy Particle Gun Missile Launcher > --- INVENTORY -------- Light Nuclear Core Seismic Detector Shield Generator Improved EM Shotgun Improved Spread Laser High-powered Shotgun [Rating: 36] Favorites ----------- Power Light Nuclear Core Engine Ion Engine Power Core Light Nuclear Core Propulsion Medium Treads Treads Medium Treads Wheel Compact Wheel Utility High-capacity Storage Unit Device Improved Heat Sink Storage High-capacity Storage Unit Processor Visual Processing Unit Protection Light Armor Plating Weapon Particle Gun Energy Gun Particle Gun Ballistic Gun Improved Assault Rifle Ballistic Cannon Improved Light Cannon Launcher Grenade Launcher Build | -11 -10 -10 -9 -8 -7 ------- Run | Yrd Mat Min Mat Mat Fac Slots Evolved 6 | . . . 2 2 2 Power 2 | . . . 1 1 . Propulsion . | . . . . . . Utility 3 | . . . 1 1 1 Weapon 1 | . . . . . 1 Parts Attached 73 | 6 5 4 20 26 12 Power 20 | 1 . . 5 10 4 Engine 14 | 1 . . 5 6 2 Core 6 | . . . . 4 2 Reactor . | . . . . . . Propulsion 16 | 2 . 1 4 9 . Treads 8 | . . . 3 5 . Leg . | . . . . . . Wheel 8 | 2 . 1 1 4 . Hover . | . . . . . . Flight . | . . . . . . Utility 15 | 1 1 . 6 3 4 Device 9 | . 1 . 2 2 4 Storage 3 | 1 . . 2 . . Processor 2 | . . . 1 1 . Hackware . | . . . . . . Protection 1 | . . . 1 . . Artifact . | . . . . . . Weapon 22 | 2 4 3 5 4 4 Energy Gun 16 | 2 2 3 4 3 2 Energy Cannon . | . . . . . . Ballistic Gun 2 | . . . . 1 1 Ballistic Cannon 1 | . . . 1 . . Launcher 3 | . 2 . . . 1 Special Weapon . | . . . . . . Impact Weapon . | . . . . . . Slashing Weapon . | . . . . . . Piercing Weapon . | . . . . . . Special Melee Weapon . | . . . . . . Unidentified Prototypes 3 | . . . . 1 2 Parts Lost 33 | . 1 2 7 6 17 Power 12 | . . . 3 3 6 Propulsion 6 | . . 1 1 2 2 Utility 6 | . . . 2 . 4 Weapon 9 | . 1 1 1 1 5 Highest Loss Streak 9 | . 1 2 5 3 9 To Critical Strikes . | . . . . . . Average Slot Usage (%) 90 | . 95 84 84 94 89 Engine 14 | . 14 14 19 15 6 Core 5 | . . . . 8 11 Treads 8 | . . . 15 12 . Wheel 9 | . 28 19 2 3 13 Device 10 | . 12 14 7 9 13 Storage 9 | . 14 14 11 9 7 Processor 10 | . . . 5 17 13 Energy Gun 13 | . 3 15 19 11 14 Ballistic Cannon 2 | . . . 2 6 . Launcher 3 | . 22 6 . . 4 Naked Turns . | . . . . . . Heaviest Build 72 | 14 17 17 58 64 72 Greatest Support 56 | 26 26 26 43 56 28 Greatest Overweight (x) 20 | . . 1 13 20 17 Average Overweight (x) 1 | . . . 1 1 2 Largest Inventory Capacity 20 | 8 8 8 20 20 20 Average Capacity 17 | 6 8 8 17 20 20 Most Carried 9 | 4 8 8 7 9 7 Average Carried 5 | 2 7 7 5 5 3 Final Capacity 20 | 8 8 8 20 20 20 Final Carried 8 | 4 8 7 5 5 2 Class Distribution -------------------- 41% | Mutant 21% | Scavenger-Skirmisher 19% | Scavenger-Mutant 15% | Scavenger-Tank Dominant Class ---------------- Mutant | -10/Materials Mutant | -10/Mines Mutant | -9/Materials Scavenger-Skirmisher | -8/Materials Scavenger-Tank | -7/Factory Resources | -11 -10 -10 -9 -8 -7 ----------- Run | Yrd Mat Min Mat Mat Fac Matter Collected 1904 | 237 130 74 427 401 635 Remotely . | . . . . . . Salvage Created 2849 | . 185 91 492 840 1241 Parts 166 | . 24 3 32 37 70 Haulers Intercepted 2 | . 1 . . . 1 Recyclers Shooed 2 | . . . . . 2 Parts Field Recycled . | . . . . . . Retrieved Matter . | . . . . . . Parts Self-Destructed . | . . . . . . Prevented . | . . . . . . Kills | -11 -10 -10 -9 -8 -7 ------- Run | Yrd Mat Min Mat Mat Fac Combat Hostiles Destroyed 71 | . 11 4 13 18 25 Guns 31 | . . 2 9 8 12 Cannons 13 | . . . 4 9 . AOE 26 | . 11 2 . . 13 Classes Destroyed 13 | . 9 . 1 1 2 Worker 5 | . 1 . 1 . 3 Builder 7 | . 2 . . . 5 Tunneler 3 | . 1 . . . 2 Hauler 2 | . 1 . . . 1 Recycler 9 | . 1 . 1 3 4 Operator 2 | . 1 . 1 . . Watcher 8 | . 1 . 2 . 5 Swarmer 21 | . 6 . 6 6 3 Grunt 39 | . 5 4 4 6 20 Brawler 1 | . . . . 1 . Sentry 8 | . . . 3 5 . Hunter 1 | . . . . . 1 Programmer 1 | . . . . . 1 Thug 1 | . . . . . 1 Best Kill Streak 8 | . 6 2 3 4 8 Combat Bots Only 5 | . 3 2 3 3 5 Max Kills in Single Turn 3 | . 3 1 2 2 3 Gunslinging . | . . . . . . Exploded 2 | . 2 1 . . 2 Melee . | . . . . . . Uniques/NPCs Destroyed . | . . . . . . Combat | -11 -10 -10 -9 -8 -7 -------- Run | Yrd Mat Min Mat Mat Fac Hostile Shots Fired 473 | . 17 19 139 87 211 Missed 139 | . 9 8 41 17 64 Damage Taken 4421 | . 126 189 1174 827 2105 Core 1294 | . 7 64 359 157 707 Absorbed by Shields 313 | . . . . . 313 Core Remaining (%) 63 | 100 . 71 10 71 . Volleys Fired 214 | . 14 12 55 49 84 Largest 3 | . 2 2 2 2 3 Hottest 145 | . 60 130 130 130 145 Shots Fired 339 | . 24 17 98 91 109 Gun 230 | . . 10 85 64 71 Cannon 40 | . . . 13 27 . Launcher 69 | . 24 7 . . 38 Special . | . . . . . . Kinetic 56 | . . . 13 27 16 Thermal 193 | . . 10 85 43 55 Explosive 69 | . 24 7 . . 38 Electromagnetic 21 | . . . . 21 . Robot Hit Streak 11 | . 3 5 9 11 9 Robot Miss Streak 8 | . 1 2 4 5 8 Penetration Max . | . . . . . . Secondary Targets 2 | . . . . 1 1 Max Gunslinging Chain 1 | . . . . 1 1 Shots Hit Robots 197 | . 8 9 52 62 66 Core Hits 193 | . 29 10 22 30 102 Critical Kills . | . . . . . . Critical Parts Destroyed . | . . . . . . Critical Strikes 12 | . . 1 2 7 2 Burn 7 | . . 1 2 2 2 Blast 4 | . . . . 4 . Corrupt 1 | . . . . 1 . Melee Attacks . | . . . . . . Impact . | . . . . . . Slashing . | . . . . . . Piercing . | . . . . . . Sneak Attacks . | . . . . . . Combat Hostiles . | . . . . . . Follow-up Attacks . | . . . . . . Damage Inflicted 8034 | . 1214 420 885 1123 4392 Guns 2707 | . . 130 781 690 1106 Cannons 537 | . . . 104 433 . Explosions 4790 | . 1214 290 . . 3286 Melee . | . . . . . . Ramming . | . . . . . . Kinetic 849 | . . . 104 433 312 Thermal 2298 | . . 130 781 542 845 Explosive 4739 | . 1214 290 . . 3235 Electromagnetic 148 | . . . . 148 . Impact . | . . . . . . Slashing . | . . . . . . Piercing . | . . . . . . Highest Corruption 4 | . . . . 4 2 Average Corruption 2 | . . . . 4 1 Corruption Purged . | . . . . . . Corruption Blocked . | . . . . . . Effects 20 | . . . . 14 6 Message Errors 4 | . . . . 2 2 Matter Fused 7 | . . . . 5 2 Heat Flow Errors 2 | . . . . 2 . Energy Discharges 1 | . . . . 1 . Parts Rejected 2 | . . . . 2 . Data Loss (minor) 2 | . . . . 1 1 Weapon Failures 2 | . . . . 1 1 Overload Shots . | . . . . . . Overflow Damage 187 | . 67 . 2 . 118 Projectiles 2 | . . . 2 . . Explosions 185 | . 67 . . . 118 Melee . | . . . . . . Knockbacks 2 | . . . . 2 . Impact . | . . . . . . Kinetic 2 | . . . . 2 . Secondary . | . . . . . . Self-Inflicted Damage 140 | . 12 26 . . 102 Shots 6 | . 1 1 . . 4 Rammed . | . . . . . . Targets Rammed . | . . . . . . Kicked . | . . . . . . Crushed . | . . . . . . Highest Temperature 573 | . 6 372 573 279 437 Average Temperature 131 | . 5 174 167 80 149 Received Heat Transfer 1572 | . 18 90 366 270 828 Effects 15 | . . . 12 1 2 Shutdowns 6 | . . . 4 . 2 Energy Bleed 2 | . . . 1 1 . Interference 2 | . . . 2 . . Matter Decay 1 | . . . 1 . . Short Circuit 1 | . . . 1 . . Damage (minor) 2 | . . . 2 . . Damage (core) 1 | . . . 1 . . Siege Activations . | . . . . . . Robots Corrupted . | . . . . . . Combat Hostiles . | . . . . . . Parts Fried . | . . . . . . Impact Corruptions . | . . . . . . Robots Melted 1 | . . . . 1 . Combat Hostiles 1 | . . . . 1 . Parts Melted 6 | . . . 5 . 1 Heat Transferred 5077 | . . 370 1998 1369 1340 Parts Sabotaged . | . . . . . . Parts Stolen . | . . . . . . Parts Stripped . | . . . . . . Power Chain Reactions . | . . . . . . Alert | -11 -10 -10 -9 -8 -7 ------- Run | Yrd Mat Min Mat Mat Fac Peak Influence 1005 | . 474 318 275 225 1005 Initial 184 | . . 184 123 42 51 Average 236 | . 192 270 173 91 552 Maximum Alert Level 3 | . 2 1 1 1 3 Low Security (%) 64 | 100 53 24 65 99 23 Level 1 19 | . 43 75 34 . 2 Level 2 9 | . 2 . . . 40 Level 3 7 | . . . . . 34 Level 4 . | . . . . . . Level 5 . | . . . . . . High Security . | . . . . . . Max Security . | . . . . . . Squads Dispatched 14 | . 2 . 2 1 9 Investigation 4 | . 1 . . 1 2 Extermination 1 | . . . . . 1 Reinforcement 9 | . 1 . 2 . 6 Assault . | . . . . . . Garrison . | . . . . . . Intercept . | . . . . . . Searches Triggered . | . . . . . . Construction Impeded 4 | . . . . . 4 Haulers Reinforced . | . . . . . . Active Scanning Responses . | . . . . . . Cargo Convoy Interrupts . | . . . . . . Stealth | -11 -10 -10 -9 -8 -7 --------- Run | Yrd Mat Min Mat Mat Fac Distress Signals 3 | . 1 . . 2 . Communications Jammed . | . . . . . . Distress Signals . | . . . . . . Times Spotted 100 | . 14 4 17 24 41 Peak Tracking Total 6 | . 4 2 5 6 5 Tactical Retreats 6 | . . . . 2 4 Traps | -11 -10 -10 -9 -8 -7 ------- Run | Yrd Mat Min Mat Mat Fac Traps Triggered 1 | . 1 . . . . Indirectly . | . . . . . . Trap Hack Attempts . | . . . . . . Triggered . | . . . . . . Disarmed . | . . . . . . Reprogrammed . | . . . . . . Reused . | . . . . . . Traps Extracted . | . . . . . . Installed . | . . . . . . Triggered . | . . . . . . Machines | -11 -10 -10 -9 -8 -7 ---------- Run | Yrd Mat Min Mat Mat Fac Machines Disabled 23 | . 4 . . . 19 Max in Single Turn 4 | . 3 . . . 4 Machines Repaired . | . . . . . . Machines Dismantled . | . . . . . . Machines Sabotaged . | . . . . . . Overloaded Fab Kills . | . . . . . . Hacking | -11 -10 -10 -9 -8 -7 --------- Run | Yrd Mat Min Mat Mat Fac Machines Accessed 13 | . 4 1 2 3 3 Terminals 10 | . 3 1 2 1 3 Fabricators . | . . . . . . Repair Stations 1 | . 1 . . . . Recycling Units 1 | . . . . 1 . Scanalyzers 1 | . . . . 1 . Garrison Access . | . . . . . . Total Hacks 51 | . 15 5 6 13 12 Successful 33 | . 9 4 5 9 6 Failed 18 | . 6 1 1 4 6 Catastrophic 5 | . 1 . . 1 3 Database Lockouts . | . . . . . . Manual 11 | . . . . 3 8 Terminals 38 | . 12 5 6 3 12 Fabricators . | . . . . . . Repair Stations 3 | . 3 . . . . Recycling Units 4 | . . . . 4 . Scanalyzers 6 | . . . . 6 . Garrison Access . | . . . . . . Terminal Hacks 24 | . 8 4 5 1 6 Record 12 | . 4 3 . . 5 Robot Analysis 1 | . . . 1 . . Prototype ID Bank 1 | . 1 . . . . Open DSF 1 | . . . . . 1 Alert Level 3 | . 1 . 2 . . Unreport Threat 1 | . . . 1 . . Maintenance Status 2 | . 2 . . . . Recall Investigation 1 | . . . . 1 . Zone Layout 2 | . . 1 1 . . Fabricator Hacks . | . . . . . . Repair Station Hacks 1 | . 1 . . . . Scan Component 1 | . 1 . . . . Recycling Unit Hacks 4 | . . . . 4 . Recycle Component 2 | . . . . 2 . Report Inventory 1 | . . . . 1 . Retrieve Components 1 | . . . . 1 . Scanalyzer 4 | . . . . 4 . Insert Component 2 | . . . . 2 . Analyze 2 | . . . . 2 . Garrison Access Hacks . | . . . . . . Unauthorized Hacks . | . . . . . . Terminals . | . . . . . . Fabricators . | . . . . . . Repair Stations . | . . . . . . Recycling Units . | . . . . . . Scanalyzers . | . . . . . . Garrison Access . | . . . . . . Data Cores Recovered . | . . . . . . Used . | . . . . . . Hacking Detections 11 | . 4 1 1 2 3 Full Trace Events 6 | . 3 . . 1 2 Feedback Events 1 | . . . . . 1 Corruption 1 | . . . . . 1 Feedback Blocked . | . . . . . . Robot Schematics Acquired . | . . . . . . Robots Built . | . . . . . . Authchips . | . . . . . . Time . | . . . . . . Total Robot Build Rating . | . . . . . . Part Schematics Acquired 2 | . . . . 2 . Parts Built . | . . . . . . Authchips . | . . . . . . Time . | . . . . . . Total Part Build Rating . | . . . . . . Parts Repaired . | . . . . . . Time . | . . . . . . Parts Recycled 2 | . . . . 2 . Recycled Matter . | . . . . . . Retrieved Matter . | . . . . . . Retrieved Components 9 | . . . . 9 . Parts Scanalyzed 2 | . . . . 2 . Part Schematics Acquired 2 | . . . . 2 . Parts Damaged . | . . . . . . Bothacking | -11 -10 -10 -9 -8 -7 ------------ Run | Yrd Mat Min Mat Mat Fac Used RIF Installer . | . . . . . . Robots Hacked . | . . . . . . Non-combat . | . . . . . . Combat . | . . . . . . Robot Hacks Applied . | . . . . . . Relay Couplers Released . | . . . . . . Fabnet Peak Effective % . | . . . . . . Robots Rewired . | . . . . . . Allies Hacked . | . . . . . . Hacks Repelled . | . . . . . . Allies | -11 -10 -10 -9 -8 -7 -------- Run | Yrd Mat Min Mat Mat Fac Total Allies . | . . . . . . Largest Group . | . . . . . . Highest-Rated Group . | . . . . . . Highest-Rated Ally . | . . . . . . Total Orders . | . . . . . . Ally Attacks . | . . . . . . Total Damage . | . . . . . . Kills . | . . . . . . Allies Corrupted . | . . . . . . Allies Melted . | . . . . . . Intel | -11 -10 -10 -9 -8 -7 ------- Run | Yrd Mat Min Mat Mat Fac Robot Analysis Total 1 | . . . 1 . . Derelict Logs Recovered . | . . . . . . Drone Launches . | . . . . . . Drone Recoveries . | . . . . . . Exploration | -11 -10 -10 -9 -8 -7 ------------- Run | Yrd Mat Min Mat Mat Fac Turns Passed 3581 | 49 322 335 777 1299 799 Spaces Moved 1827 | 39 294 324 281 473 416 Core 34 | 4 . . 13 10 7 Treads 498 | . . . 218 280 . Legs . | . . . . . . Wheels 1295 | 35 294 324 50 183 409 Hover . | . . . . . . Flight . | . . . . . . Fastest Speed 50 | 50 90 90 90 120 110 Average Speed 146 | 84 90 92 203 199 135 Slowest Speed 1050 | 90 90 95 700 1050 900 Overloaded Moves . | . . . . . . Propulsion Burnouts . | . . . . . . Robots Hopped . | . . . . . . Cave-ins Triggered . | . . . . . . Exploration Rate (%) 32 | 3 58 62 25 35 13 Regions Visited 5 Branch Regions 1 Pre-discovered Areas . | . . . . . . Known Exits Taken . | . . . . . . Unknown Exits Taken 5 | 1 1 1 1 1 . Scrap Searched . | . . . . . . Spaces Dug . | . . . . . . Terrain Destroyed 405 | . 123 63 2 1 216 Melee . | . . . . . . Projectile 3 | . . . 2 1 . AOE 402 | . 123 63 . . 216 Terrain Rammed . | . . . . . . Walls Destroyed . | . . . . . . Machines Disabled . | . . . . . . Actions | -11 -10 -10 -9 -8 -7 --------- Run | Yrd Mat Min Mat Mat Fac Total 2396 | 54 327 341 389 740 545 Wait 193 | . 6 . 14 151 22 Move 1822 | 38 293 323 280 472 416 Hop . | . . . . . . Pick Up 65 | 10 6 2 13 26 8 Fast Attach . | . . . . . . Attach 58 | 6 3 3 14 21 11 Detach 5 | . 2 . 1 2 . Swap 15 | . 2 1 6 5 1 Drop 24 | . 1 . 6 14 3 Fire 214 | . 14 12 55 49 84 Melee . | . . . . . . Ram . | . . . . . . Kick . | . . . . . . Crush . | . . . . . . Escape Stasis . | . . . . . . Rewire . | . . . . . . Trap . | . . . . . . Miscellaneous . | . . . . . . Route ------- -11/Scrapyard -10/Materials -10/Mines -9/Materials -8/Materials -7/Factory History --------- Turn | Location | Event 15 | -11/Scrapyard | Discovered new exit (range 16) 50 | -11/Scrapyard | Entered Materials 245 | -10/Materials | Discovered new exit (range 11) 310 | -10/Materials | Build established: Mutant 372 | -10/Materials | Entered Mines 695 | -10/Mines | Discovered new exit (range 10) 707 | -10/Mines | Entered Materials 707 | -9/Materials | Evolved 2 slots: Power x1, Utility x1 815 | -9/Materials | Core integrity fell below 50% 842 | -9/Materials | Lost 5 parts (2p1n2u) 1388 | -9/Materials | Discovered new exit (range 17) 1413 | -9/Materials | Core integrity fell below 20% 1484 | -9/Materials | Entered another Materials area 1484 | -8/Materials | Evolved 2 slots: Power x1, Utility x1 1896 | -8/Materials | Build established: Scavenger-Skirmisher 2287 | -8/Materials | Lost 3 parts (1p1n1w) 2690 | -8/Materials | Discovered new exit (range 8) 2713 | -8/Materials | Build established: Scavenger-Mutant 2783 | -8/Materials | Entered Factory 2783 | -7/Factory | Evolved 2 slots: Utility x1, Weapon x1 3090 | -7/Factory | Build established: Scavenger-Tank 3478 | -7/Factory | Lost 6 parts (3p2u1w) 3540 | -7/Factory | Core integrity fell below 50% 3568 | -7/Factory | Core integrity fell below 20% 3582 | -7/Factory | Destroyed by G-47 Trooper with Particle Gun Last Messages --------------- U-05 Engineer lays Concrete. K-01 Serf collects debris. Imp. Heat Sink destroyed. K-01 Serf collects debris. U-05 Engineer builds a Wall. K-01 Serf collects debris. U-05 Engineer lays Concrete. K-01 Serf collects debris. U-05 Engineer builds a Wall. U-05 Engineer lays Concrete. K-01 Serf collects debris. U-05 Engineer builds a Wall. K-01 Serf collects debris. U-05 Engineer builds a Door. K-01 Serf collects debris. Critical hit (Burn: +37). K-01 Serf collects debris. U-05 Engineer builds a Wall. K-01 Serf collects debris. [Achievement: 5k Club] Map ----- +----------------------------------------------------+ | ?????????????????????????????????????????????????? | | ?????????????????????????????????????????????????? | | ?????????????????????????????????????????????????? | | ?????????????????????????????????????????????????? | | ?????????????????????????????????????????????????? | | ?????????????????????????????????????????????????? | | ?????????????????????????????????????????????????? | | ?????????????????????????????????????????????????? | | ?????????????# ??????????????????????????????????? | | ?????????????# ???????????????????? ?????????????? | | ?????????????# ??????????????????? ?????????????? | | ?????????????# ??##############?# #????????????? | | ?????????????# ??# #?# #????????????? | | ?????????????# ?#""" #?# #????????????? | | ?????????????# ?#"T k #?# #????????????? | | ?????????????# # #?# #????????????? | | ?????????????# # k### #????????????? | | ?????????????# a # %= ## #####????????? | | ?????????????# k # ! k ; #????????? | | ?????????????+ %u%* ;" #??????### | | ?????????????# !%%%[ ####???#"" | | ?????????????# *%!gg " #####T" | | ?????????????# =!# # | | ?????????????# ?# % # | | ?????????????# ### =!########% | | ?????????????# @kk u | | ?????????????# % % % # ####### | | ?????????????# % # ##????## | | ?????????????# k ###??????? | | ?????????????# r% %#????????? | | ?????????????################+####### #????????? | | ??????????????????????????? ?????# #????????? | | ????????????????????????? ?? ????# ???????? | | ???????????????????????? ????? ???# ?????? | | ???????????????????????# ?????? ??# ????? | | ???????????????????????#????????????# """ ??? | | ????????????????????????????????????# """"" #?? | | ????????????????????????????????????# """"" #?? | | ????????????????????????????????????# ?? ? | | ????????????????????????????????????# ??? ? | | ????????????????????????????????????? ##??????? | | ????????????????????????????????????? #???????? | | ????????????????????????????????????? ##+#???????? | | ????????????????????????????????????? ???????????? | | ????????????????????????????????????? ???????????? | | ????????????????????????????????????? ???????????? | | ????????????????????????????????????? ???????????? | | ?????????????????????????????????????????????????? | | ?????????????????????????????????????????????????? | | ?????????????????????????????????????????????????? | +----------------------------------------------------+ Best States ------------- Heat Dissipation 48 Coolant Potential 50 Energy Generation 32 Energy Capacity 400 Matter Stores 300 Matter Capacity 300 Sight Range 18 Robot Scan Range 15 Terrain Scan Range 14 Terrain Scan Density 210 Armor Coverage 150 Evasion (%) 44 Recoil Reduction 2 Item Schematics ----------------- Imp. Light Cannon | -8/Materials | Scanalyzed Hvy. Particle Gun | -8/Materials | Scanalyzed Robot Schematics ------------------ None Fabricated ------------ Nothing Alien Tech Used ----------------- None Achievements -------------- 5k Club Dramatic Entrance GoHome() Safety First Challenges ------------ None Game ------ Seed DamperFlightGenerator Manual? 0 Play Time 01:08:06 Cumulative 5.3 hours Start 2024.04.16 @ 08:01:44 End 2024.04.16 @ 09:31:28 Sessions 1 Manual Loads 0 Difficulty Rogue Special Mode None Game No. 8 Rogue 8 Adventurer 0 Explorer 0 Win Type - Total 0 Types 0/0/0/0/0/0/0/0/0 Lore% 5 Gallery% 9 Achievement% 11 Wizard Run 0 Options --------- Layout 0 ASCII 0 Keyboard 0 Movement Mouse Keybinds 0 Fullscreen 1 Font 18/SmallcapsGlow Map View 76x50 Zoom Use 0% Tactical HUD 0 Map Filters NONE Filters NONE Steam 1 RUN: e0b73257-55f3-4ca0-bf46-41cf8ed9557e